{"text_format":"3","workbook":"xlsx","n_sheets":4,"sheets":["Podsumowanie","Sumy","Przychód","Wydatki"],"not_rendered":{"defined_names":13},"read":"whole","date_system":"1900"}

{"sheet":"Podsumowanie","index":0,"n_rows":6,"n_cols":3,"rows_kept":6,"merged":[[0,1,0,2],[1,1,1,2]]}
[null,"RODZINNY BUDŻET MIESIĘCZNY"]
[null,"PODSUMOWANIE"]
[null,"Saldo","Kwota"]
[null,"Przewidywane saldo (przewidywany przychód minus wydatki)",{"$f":"Przewidywany_przychód-Przewidywane_wydatki","v":{"v":1114,"d":"1,114 zł"}}]
[null,"Saldo rzeczywiste (przychód rzeczywisty minus wydatki)",{"$f":"Przychód_roczny-Wydatki_rzeczywiste","v":{"v":997,"d":"997 zł"}}]
[null,"Różnica (rzeczywista minus przewidywana)",{"$f":"Saldo_rzeczywiste-Przewidywane_saldo","v":{"v":-117,"d":"-117 zł"}}]

{"sheet":"Sumy","index":1,"n_rows":6,"n_cols":3,"rows_kept":6,"merged":[[0,1,0,2],[1,1,1,2]]}
[null,{"$f":"Tytuł_skoroszytu","v":"RODZINNY BUDŻET MIESIĘCZNY"}]
[null,"Sumy"]
[null,"Sumy","Kwota"]
[null,"Suma kosztów przewidywanych",{"$f":"Przewidywane_wydatki","v":{"v":4486,"d":"4,486 zł"}}]
[null,"Suma kosztów rzeczywistych",{"$f":"Wydatki_rzeczywiste","v":{"v":4603,"d":"4,603 zł"}}]
[null,"Suma różnic",{"$f":"C4-C5","v":{"v":-117,"d":"-117 zł"}}]

{"sheet":"Przychód","index":2,"n_rows":7,"n_cols":5,"rows_kept":7,"merged":[[0,1,0,4],[1,1,1,4]]}
[null,{"$f":"Tytuł_skoroszytu","v":"RODZINNY BUDŻET MIESIĘCZNY"}]
[null,"PRZYCHÓD"]
[null,"Przewidywany przychód","Przewidywane","Rzeczywiste","Różnica"]
[null,"Przychód 1",{"v":4000,"d":"4,000.00 zł"},{"v":4000,"d":"4,000.00 zł"},{"$f":"Tabela_Przychód[[#This Row],[Przewidywane]]-Tabela_Przychód[[#This Row],[Rzeczywiste]]","v":{"v":0,"d":"0.00 zł"}}]
[null,"Przychód 2",{"v":1300,"d":"1,300.00 zł"},{"v":1300,"d":"1,300.00 zł"},{"$f":"Tabela_Przychód[[#This Row],[Przewidywane]]-Tabela_Przychód[[#This Row],[Rzeczywiste]]","v":{"v":0,"d":"0.00 zł"}}]
[null,"Przychód dodatkowy",{"v":300,"d":"300.00 zł"},{"v":300,"d":"300.00 zł"},{"$f":"Tabela_Przychód[[#This Row],[Przewidywane]]-Tabela_Przychód[[#This Row],[Rzeczywiste]]","v":{"v":0,"d":"0.00 zł"}}]
[null,"Łączny przychód miesięczny",{"$f":"SUBTOTAL(109,Tabela_Przychód[Przewidywane])","v":{"v":5600,"d":"5,600.00 zł"}},{"$f":"SUBTOTAL(109,Tabela_Przychód[Rzeczywiste])","v":{"v":5600,"d":"5,600.00 zł"}},{"$f":"SUBTOTAL(109,Tabela_Przychód[Różnica])","v":{"v":0,"d":"0.00 zł"}}]

{"sheet":"Wydatki","index":3,"n_rows":80,"n_cols":6,"rows_kept":80,"merged":[[0,1,0,5],[1,1,1,5],[2,1,2,5]]}
[null,{"$f":"Tytuł_skoroszytu","v":"RODZINNY BUDŻET MIESIĘCZNY"}]
[null,"WYDATKI"]
[null,"Ta komórka zawiera fragmentator do filtrowania tabeli wydatków według kategorii."]
[null,"Kategoria","Podkategoria","Przewidywane","Rzeczywiste","Różnica"]
[null,"Utrzymanie domu","Spłata kredytu lub czynsz",{"v":1000,"d":"1,000.00 zł"},{"v":1000,"d":"1,000.00 zł"},{"$f":"Tabela_Wydatki[[#This Row],[Przewidywane]]-Tabela_Wydatki[[#This Row],[Rzeczywiste]]","v":{"v":0,"d":"0.00 zł"}}]
[null,"Utrzymanie domu","Druga spłata kredytu lub czynsz",{"v":0,"d":"0.00 zł"},{"v":0,"d":"0.00 zł"},{"$f":"Tabela_Wydatki[[#This Row],[Przewidywane]]-Tabela_Wydatki[[#This Row],[Rzeczywiste]]","v":{"v":0,"d":"0.00 zł"}}]
[null,"Utrzymanie domu","Telefon",{"v":54,"d":"54.00 zł"},{"v":100,"d":"100.00 zł"},{"$f":"Tabela_Wydatki[[#This Row],[Przewidywane]]-Tabela_Wydatki[[#This Row],[Rzeczywiste]]","v":{"v":-46,"d":"-46.00 zł"}}]
[null,"Utrzymanie domu","Energia elektryczna",{"v":44,"d":"44.00 zł"},{"v":56,"d":"56.00 zł"},{"$f":"Tabela_Wydatki[[#This Row],[Przewidywane]]-Tabela_Wydatki[[#This Row],[Rzeczywiste]]","v":{"v":-12,"d":"-12.00 zł"}}]
[null,"Utrzymanie domu","Gaz",{"v":22,"d":"22.00 zł"},{"v":28,"d":"28.00 zł"},{"$f":"Tabela_Wydatki[[#This Row],[Przewidywane]]-Tabela_Wydatki[[#This Row],[Rzeczywiste]]","v":{"v":-6,"d":"-6.00 zł"}}]
[null,"Utrzymanie domu","Woda i ścieki",{"v":8,"d":"8.00 zł"},{"v":8,"d":"8.00 zł"},{"$f":"Tabela_Wydatki[[#This Row],[Przewidywane]]-Tabela_Wydatki[[#This Row],[Rzeczywiste]]","v":{"v":0,"d":"0.00 zł"}}]
[null,"Utrzymanie domu","Telewizja kablowa",{"v":34,"d":"34.00 zł"},{"v":34,"d":"34.00 zł"},{"$f":"Tabela_Wydatki[[#This Row],[Przewidywane]]-Tabela_Wydatki[[#This Row],[Rzeczywiste]]","v":{"v":0,"d":"0.00 zł"}}]
[null,"Utrzymanie domu","Wywóz śmieci",{"v":10,"d":"10.00 zł"},{"v":10,"d":"10.00 zł"},{"$f":"Tabela_Wydatki[[#This Row],[Przewidywane]]-Tabela_Wydatki[[#This Row],[Rzeczywiste]]","v":{"v":0,"d":"0.00 zł"}}]
[null,"Utrzymanie domu","Konserwacja lub naprawy",{"v":23,"d":"23.00 zł"},{"v":0,"d":"0.00 zł"},{"$f":"Tabela_Wydatki[[#This Row],[Przewidywane]]-Tabela_Wydatki[[#This Row],[Rzeczywiste]]","v":{"v":23,"d":"23.00 zł"}}]
[null,"Utrzymanie domu","Materiały",{"v":0,"d":"0.00 zł"},{"v":0,"d":"0.00 zł"},{"$f":"Tabela_Wydatki[[#This Row],[Przewidywane]]-Tabela_Wydatki[[#This Row],[Rzeczywiste]]","v":{"v":0,"d":"0.00 zł"}}]
[null,"Utrzymanie domu","Inne",{"v":0,"d":"0.00 zł"},{"v":0,"d":"0.00 zł"},{"$f":"Tabela_Wydatki[[#This Row],[Przewidywane]]-Tabela_Wydatki[[#This Row],[Rzeczywiste]]","v":{"v":0,"d":"0.00 zł"}}]
[null,"Transport","Opłaty za samochód 1",{"v":16,"d":"16.00 zł"},{"v":66,"d":"66.00 zł"},{"$f":"Tabela_Wydatki[[#This Row],[Przewidywane]]-Tabela_Wydatki[[#This Row],[Rzeczywiste]]","v":{"v":-50,"d":"-50.00 zł"}}]
[null,"Transport","Opłaty za samochód 2",{"v":35,"d":"35.00 zł"},{"v":42,"d":"42.00 zł"},{"$f":"Tabela_Wydatki[[#This Row],[Przewidywane]]-Tabela_Wydatki[[#This Row],[Rzeczywiste]]","v":{"v":-7,"d":"-7.00 zł"}}]
[null,"Transport","Opłaty za taksówkę/autobus",{"v":1,"d":"1.00 zł"},{"v":62,"d":"62.00 zł"},{"$f":"Tabela_Wydatki[[#This Row],[Przewidywane]]-Tabela_Wydatki[[#This Row],[Rzeczywiste]]","v":{"v":-61,"d":"-61.00 zł"}}]
[null,"Transport","Ubezpieczenie",{"v":91,"d":"91.00 zł"},{"v":27,"d":"27.00 zł"},{"$f":"Tabela_Wydatki[[#This Row],[Przewidywane]]-Tabela_Wydatki[[#This Row],[Rzeczywiste]]","v":{"v":64,"d":"64.00 zł"}}]
[null,"Transport","Licencjonowanie",{"v":80,"d":"80.00 zł"},{"v":89,"d":"89.00 zł"},{"$f":"Tabela_Wydatki[[#This Row],[Przewidywane]]-Tabela_Wydatki[[#This Row],[Rzeczywiste]]","v":{"v":-9,"d":"-9.00 zł"}}]
[null,"Transport","Paliwo",{"v":18,"d":"18.00 zł"},{"v":93,"d":"93.00 zł"},{"$f":"Tabela_Wydatki[[#This Row],[Przewidywane]]-Tabela_Wydatki[[#This Row],[Rzeczywiste]]","v":{"v":-75,"d":"-75.00 zł"}}]
[null,"Transport","Konserwacja",{"v":34,"d":"34.00 zł"},{"v":37,"d":"37.00 zł"},{"$f":"Tabela_Wydatki[[#This Row],[Przewidywane]]-Tabela_Wydatki[[#This Row],[Rzeczywiste]]","v":{"v":-3,"d":"-3.00 zł"}}]
[null,"Transport","Inne",{"v":83,"d":"83.00 zł"},{"v":61,"d":"61.00 zł"},{"$f":"Tabela_Wydatki[[#This Row],[Przewidywane]]-Tabela_Wydatki[[#This Row],[Rzeczywiste]]","v":{"v":22,"d":"22.00 zł"}}]
[null,"Ubezpieczenie","Dom",{"v":48,"d":"48.00 zł"},{"v":63,"d":"63.00 zł"},{"$f":"Tabela_Wydatki[[#This Row],[Przewidywane]]-Tabela_Wydatki[[#This Row],[Rzeczywiste]]","v":{"v":-15,"d":"-15.00 zł"}}]
[null,"Ubezpieczenie","Zdrowie",{"v":21,"d":"21.00 zł"},{"v":44,"d":"44.00 zł"},{"$f":"Tabela_Wydatki[[#This Row],[Przewidywane]]-Tabela_Wydatki[[#This Row],[Rzeczywiste]]","v":{"v":-23,"d":"-23.00 zł"}}]
[null,"Ubezpieczenie","Życie",{"v":35,"d":"35.00 zł"},{"v":65,"d":"65.00 zł"},{"$f":"Tabela_Wydatki[[#This Row],[Przewidywane]]-Tabela_Wydatki[[#This Row],[Rzeczywiste]]","v":{"v":-30,"d":"-30.00 zł"}}]
[null,"Ubezpieczenie","Inne",{"v":14,"d":"14.00 zł"},{"v":75,"d":"75.00 zł"},{"$f":"Tabela_Wydatki[[#This Row],[Przewidywane]]-Tabela_Wydatki[[#This Row],[Rzeczywiste]]","v":{"v":-61,"d":"-61.00 zł"}}]
[null,"Jedzenie","Artykuły spożywcze",{"v":79,"d":"79.00 zł"},{"v":0,"d":"0.00 zł"},{"$f":"Tabela_Wydatki[[#This Row],[Przewidywane]]-Tabela_Wydatki[[#This Row],[Rzeczywiste]]","v":{"v":79,"d":"79.00 zł"}}]
[null,"Jedzenie","Restauracje",{"v":56,"d":"56.00 zł"},{"v":50,"d":"50.00 zł"},{"$f":"Tabela_Wydatki[[#This Row],[Przewidywane]]-Tabela_Wydatki[[#This Row],[Rzeczywiste]]","v":{"v":6,"d":"6.00 zł"}}]
[null,"Jedzenie","Inne",{"v":96,"d":"96.00 zł"},{"v":23,"d":"23.00 zł"},{"$f":"Tabela_Wydatki[[#This Row],[Przewidywane]]-Tabela_Wydatki[[#This Row],[Rzeczywiste]]","v":{"v":73,"d":"73.00 zł"}}]
[null,"Dzieci","Artykuły medyczne",{"v":90,"d":"90.00 zł"},{"v":90,"d":"90.00 zł"},{"$f":"Tabela_Wydatki[[#This Row],[Przewidywane]]-Tabela_Wydatki[[#This Row],[Rzeczywiste]]","v":{"v":0,"d":"0.00 zł"}}]
[null,"Dzieci","Ubrania",{"v":33,"d":"33.00 zł"},{"v":30,"d":"30.00 zł"},{"$f":"Tabela_Wydatki[[#This Row],[Przewidywane]]-Tabela_Wydatki[[#This Row],[Rzeczywiste]]","v":{"v":3,"d":"3.00 zł"}}]
[null,"Dzieci","Czesne",{"v":86,"d":"86.00 zł"},{"v":64,"d":"64.00 zł"},{"$f":"Tabela_Wydatki[[#This Row],[Przewidywane]]-Tabela_Wydatki[[#This Row],[Rzeczywiste]]","v":{"v":22,"d":"22.00 zł"}}]
[null,"Dzieci","Artykuły szkolne",{"v":76,"d":"76.00 zł"},{"v":2,"d":"2.00 zł"},{"$f":"Tabela_Wydatki[[#This Row],[Przewidywane]]-Tabela_Wydatki[[#This Row],[Rzeczywiste]]","v":{"v":74,"d":"74.00 zł"}}]
[null,"Dzieci","Opłaty na cele organizacji",{"v":60,"d":"60.00 zł"},{"v":90,"d":"90.00 zł"},{"$f":"Tabela_Wydatki[[#This Row],[Przewidywane]]-Tabela_Wydatki[[#This Row],[Rzeczywiste]]","v":{"v":-30,"d":"-30.00 zł"}}]
[null,"Dzieci","Pieniądze na obiad",{"v":37,"d":"37.00 zł"},{"v":60,"d":"60.00 zł"},{"$f":"Tabela_Wydatki[[#This Row],[Przewidywane]]-Tabela_Wydatki[[#This Row],[Rzeczywiste]]","v":{"v":-23,"d":"-23.00 zł"}}]
[null,"Dzieci","Opieka nad dzieckiem",{"v":22,"d":"22.00 zł"},{"v":70,"d":"70.00 zł"},{"$f":"Tabela_Wydatki[[#This Row],[Przewidywane]]-Tabela_Wydatki[[#This Row],[Rzeczywiste]]","v":{"v":-48,"d":"-48.00 zł"}}]
[null,"Dzieci","Zabawki/gry",{"v":80,"d":"80.00 zł"},{"v":21,"d":"21.00 zł"},{"$f":"Tabela_Wydatki[[#This Row],[Przewidywane]]-Tabela_Wydatki[[#This Row],[Rzeczywiste]]","v":{"v":59,"d":"59.00 zł"}}]
[null,"Dzieci","Inne",{"v":65,"d":"65.00 zł"},{"v":20,"d":"20.00 zł"},{"$f":"Tabela_Wydatki[[#This Row],[Przewidywane]]-Tabela_Wydatki[[#This Row],[Rzeczywiste]]","v":{"v":45,"d":"45.00 zł"}}]
[null,"Zwierzęta","Jedzenie",{"v":37,"d":"37.00 zł"},{"v":34,"d":"34.00 zł"},{"$f":"Tabela_Wydatki[[#This Row],[Przewidywane]]-Tabela_Wydatki[[#This Row],[Rzeczywiste]]","v":{"v":3,"d":"3.00 zł"}}]
[null,"Zwierzęta","Artykuły medyczne",{"v":74,"d":"74.00 zł"},{"v":86,"d":"86.00 zł"},{"$f":"Tabela_Wydatki[[#This Row],[Przewidywane]]-Tabela_Wydatki[[#This Row],[Rzeczywiste]]","v":{"v":-12,"d":"-12.00 zł"}}]
[null,"Zwierzęta","Pielęgnacja",{"v":80,"d":"80.00 zł"},{"v":92,"d":"92.00 zł"},{"$f":"Tabela_Wydatki[[#This Row],[Przewidywane]]-Tabela_Wydatki[[#This Row],[Rzeczywiste]]","v":{"v":-12,"d":"-12.00 zł"}}]
[null,"Zwierzęta","Zabawki",{"v":61,"d":"61.00 zł"},{"v":22,"d":"22.00 zł"},{"$f":"Tabela_Wydatki[[#This Row],[Przewidywane]]-Tabela_Wydatki[[#This Row],[Rzeczywiste]]","v":{"v":39,"d":"39.00 zł"}}]
[null,"Zwierzęta","Inne",{"v":83,"d":"83.00 zł"},{"v":51,"d":"51.00 zł"},{"$f":"Tabela_Wydatki[[#This Row],[Przewidywane]]-Tabela_Wydatki[[#This Row],[Rzeczywiste]]","v":{"v":32,"d":"32.00 zł"}}]
[null,"Wydatki osobiste","Artykuły medyczne",{"v":28,"d":"28.00 zł"},{"v":10,"d":"10.00 zł"},{"$f":"Tabela_Wydatki[[#This Row],[Przewidywane]]-Tabela_Wydatki[[#This Row],[Rzeczywiste]]","v":{"v":18,"d":"18.00 zł"}}]
[null,"Wydatki osobiste","Włosy/paznokcie",{"v":25,"d":"25.00 zł"},{"v":81,"d":"81.00 zł"},{"$f":"Tabela_Wydatki[[#This Row],[Przewidywane]]-Tabela_Wydatki[[#This Row],[Rzeczywiste]]","v":{"v":-56,"d":"-56.00 zł"}}]
[null,"Wydatki osobiste","Ubrania",{"v":59,"d":"59.00 zł"},{"v":72,"d":"72.00 zł"},{"$f":"Tabela_Wydatki[[#This Row],[Przewidywane]]-Tabela_Wydatki[[#This Row],[Rzeczywiste]]","v":{"v":-13,"d":"-13.00 zł"}}]
[null,"Wydatki osobiste","Pralnia chemiczna",{"v":89,"d":"89.00 zł"},{"v":90,"d":"90.00 zł"},{"$f":"Tabela_Wydatki[[#This Row],[Przewidywane]]-Tabela_Wydatki[[#This Row],[Rzeczywiste]]","v":{"v":-1,"d":"-1.00 zł"}}]
[null,"Wydatki osobiste","Klub sportowy",{"v":78,"d":"78.00 zł"},{"v":48,"d":"48.00 zł"},{"$f":"Tabela_Wydatki[[#This Row],[Przewidywane]]-Tabela_Wydatki[[#This Row],[Rzeczywiste]]","v":{"v":30,"d":"30.00 zł"}}]
[null,"Wydatki osobiste","Opłaty na cele organizacji",{"v":6,"d":"6.00 zł"},{"v":73,"d":"73.00 zł"},{"$f":"Tabela_Wydatki[[#This Row],[Przewidywane]]-Tabela_Wydatki[[#This Row],[Rzeczywiste]]","v":{"v":-67,"d":"-67.00 zł"}}]
[null,"Wydatki osobiste","Inne",{"v":80,"d":"80.00 zł"},{"v":66,"d":"66.00 zł"},{"$f":"Tabela_Wydatki[[#This Row],[Przewidywane]]-Tabela_Wydatki[[#This Row],[Rzeczywiste]]","v":{"v":14,"d":"14.00 zł"}}]
[null,"Rozrywka","Filmy wideo/DVD",{"v":11,"d":"11.00 zł"},{"v":29,"d":"29.00 zł"},{"$f":"Tabela_Wydatki[[#This Row],[Przewidywane]]-Tabela_Wydatki[[#This Row],[Rzeczywiste]]","v":{"v":-18,"d":"-18.00 zł"}}]
[null,"Rozrywka","Płyty CD",{"v":77,"d":"77.00 zł"},{"v":32,"d":"32.00 zł"},{"$f":"Tabela_Wydatki[[#This Row],[Przewidywane]]-Tabela_Wydatki[[#This Row],[Rzeczywiste]]","v":{"v":45,"d":"45.00 zł"}}]
[null,"Rozrywka","Kino",{"v":71,"d":"71.00 zł"},{"v":43,"d":"43.00 zł"},{"$f":"Tabela_Wydatki[[#This Row],[Przewidywane]]-Tabela_Wydatki[[#This Row],[Rzeczywiste]]","v":{"v":28,"d":"28.00 zł"}}]
[null,"Rozrywka","Koncerty",{"v":64,"d":"64.00 zł"},{"v":21,"d":"21.00 zł"},{"$f":"Tabela_Wydatki[[#This Row],[Przewidywane]]-Tabela_Wydatki[[#This Row],[Rzeczywiste]]","v":{"v":43,"d":"43.00 zł"}}]
[null,"Rozrywka","Imprezy sportowe",{"v":47,"d":"47.00 zł"},{"v":57,"d":"57.00 zł"},{"$f":"Tabela_Wydatki[[#This Row],[Przewidywane]]-Tabela_Wydatki[[#This Row],[Rzeczywiste]]","v":{"v":-10,"d":"-10.00 zł"}}]
[null,"Rozrywka","Teatr",{"v":28,"d":"28.00 zł"},{"v":1,"d":"1.00 zł"},{"$f":"Tabela_Wydatki[[#This Row],[Przewidywane]]-Tabela_Wydatki[[#This Row],[Rzeczywiste]]","v":{"v":27,"d":"27.00 zł"}}]
[null,"Rozrywka","Inne",{"v":13,"d":"13.00 zł"},{"v":42,"d":"42.00 zł"},{"$f":"Tabela_Wydatki[[#This Row],[Przewidywane]]-Tabela_Wydatki[[#This Row],[Rzeczywiste]]","v":{"v":-29,"d":"-29.00 zł"}}]
[null,"Pożyczki","Osobiste",{"v":65,"d":"65.00 zł"},{"v":6,"d":"6.00 zł"},{"$f":"Tabela_Wydatki[[#This Row],[Przewidywane]]-Tabela_Wydatki[[#This Row],[Rzeczywiste]]","v":{"v":59,"d":"59.00 zł"}}]
[null,"Pożyczki","Kredyt studencki",{"v":100,"d":"100.00 zł"},{"v":36,"d":"36.00 zł"},{"$f":"Tabela_Wydatki[[#This Row],[Przewidywane]]-Tabela_Wydatki[[#This Row],[Rzeczywiste]]","v":{"v":64,"d":"64.00 zł"}}]
[null,"Pożyczki","Karta kredytowa",{"v":29,"d":"29.00 zł"},{"v":69,"d":"69.00 zł"},{"$f":"Tabela_Wydatki[[#This Row],[Przewidywane]]-Tabela_Wydatki[[#This Row],[Rzeczywiste]]","v":{"v":-40,"d":"-40.00 zł"}}]
[null,"Pożyczki","Karta kredytowa",{"v":64,"d":"64.00 zł"},{"v":3,"d":"3.00 zł"},{"$f":"Tabela_Wydatki[[#This Row],[Przewidywane]]-Tabela_Wydatki[[#This Row],[Rzeczywiste]]","v":{"v":61,"d":"61.00 zł"}}]
[null,"Pożyczki","Karta kredytowa",{"v":34,"d":"34.00 zł"},{"v":35,"d":"35.00 zł"},{"$f":"Tabela_Wydatki[[#This Row],[Przewidywane]]-Tabela_Wydatki[[#This Row],[Rzeczywiste]]","v":{"v":-1,"d":"-1.00 zł"}}]
[null,"Pożyczki","Inne",{"v":38,"d":"38.00 zł"},{"v":52,"d":"52.00 zł"},{"$f":"Tabela_Wydatki[[#This Row],[Przewidywane]]-Tabela_Wydatki[[#This Row],[Rzeczywiste]]","v":{"v":-14,"d":"-14.00 zł"}}]
[null,"Podatki","Państwowe",{"v":84,"d":"84.00 zł"},{"v":36,"d":"36.00 zł"},{"$f":"Tabela_Wydatki[[#This Row],[Przewidywane]]-Tabela_Wydatki[[#This Row],[Rzeczywiste]]","v":{"v":48,"d":"48.00 zł"}}]
[null,"Podatki","Wojewódzkie",{"v":2,"d":"2.00 zł"},{"v":83,"d":"83.00 zł"},{"$f":"Tabela_Wydatki[[#This Row],[Przewidywane]]-Tabela_Wydatki[[#This Row],[Rzeczywiste]]","v":{"v":-81,"d":"-81.00 zł"}}]
[null,"Podatki","Lokalne",{"v":40,"d":"40.00 zł"},{"v":20,"d":"20.00 zł"},{"$f":"Tabela_Wydatki[[#This Row],[Przewidywane]]-Tabela_Wydatki[[#This Row],[Rzeczywiste]]","v":{"v":20,"d":"20.00 zł"}}]
[null,"Podatki","Inne",{"v":35,"d":"35.00 zł"},{"v":72,"d":"72.00 zł"},{"$f":"Tabela_Wydatki[[#This Row],[Przewidywane]]-Tabela_Wydatki[[#This Row],[Rzeczywiste]]","v":{"v":-37,"d":"-37.00 zł"}}]
[null,"Oszczędności lub inwestycje","Fundusz emerytalny",{"v":34,"d":"34.00 zł"},{"v":20,"d":"20.00 zł"},{"$f":"Tabela_Wydatki[[#This Row],[Przewidywane]]-Tabela_Wydatki[[#This Row],[Rzeczywiste]]","v":{"v":14,"d":"14.00 zł"}}]
[null,"Oszczędności lub inwestycje","Fundusz inwestycyjny",{"v":68,"d":"68.00 zł"},{"v":98,"d":"98.00 zł"},{"$f":"Tabela_Wydatki[[#This Row],[Przewidywane]]-Tabela_Wydatki[[#This Row],[Rzeczywiste]]","v":{"v":-30,"d":"-30.00 zł"}}]
[null,"Oszczędności lub inwestycje","Studia",{"v":89,"d":"89.00 zł"},{"v":68,"d":"68.00 zł"},{"$f":"Tabela_Wydatki[[#This Row],[Przewidywane]]-Tabela_Wydatki[[#This Row],[Rzeczywiste]]","v":{"v":21,"d":"21.00 zł"}}]
[null,"Oszczędności lub inwestycje","Inne",{"v":82,"d":"82.00 zł"},{"v":26,"d":"26.00 zł"},{"$f":"Tabela_Wydatki[[#This Row],[Przewidywane]]-Tabela_Wydatki[[#This Row],[Rzeczywiste]]","v":{"v":56,"d":"56.00 zł"}}]
[null,"Prezenty i dotacje","Cele charytatywne 1",{"v":41,"d":"41.00 zł"},{"v":85,"d":"85.00 zł"},{"$f":"Tabela_Wydatki[[#This Row],[Przewidywane]]-Tabela_Wydatki[[#This Row],[Rzeczywiste]]","v":{"v":-44,"d":"-44.00 zł"}}]
[null,"Prezenty i dotacje","Cele charytatywne 2",{"v":0,"d":"0.00 zł"},{"v":69,"d":"69.00 zł"},{"$f":"Tabela_Wydatki[[#This Row],[Przewidywane]]-Tabela_Wydatki[[#This Row],[Rzeczywiste]]","v":{"v":-69,"d":"-69.00 zł"}}]
[null,"Prezenty i dotacje","Cele charytatywne 3",{"v":2,"d":"2.00 zł"},{"v":57,"d":"57.00 zł"},{"$f":"Tabela_Wydatki[[#This Row],[Przewidywane]]-Tabela_Wydatki[[#This Row],[Rzeczywiste]]","v":{"v":-55,"d":"-55.00 zł"}}]
[null,"Prawne","Adwokat",{"v":7,"d":"7.00 zł"},{"v":98,"d":"98.00 zł"},{"$f":"Tabela_Wydatki[[#This Row],[Przewidywane]]-Tabela_Wydatki[[#This Row],[Rzeczywiste]]","v":{"v":-91,"d":"-91.00 zł"}}]
[null,"Prawne","Alimenty",{"v":39,"d":"39.00 zł"},{"v":85,"d":"85.00 zł"},{"$f":"Tabela_Wydatki[[#This Row],[Przewidywane]]-Tabela_Wydatki[[#This Row],[Rzeczywiste]]","v":{"v":-46,"d":"-46.00 zł"}}]
[null,"Prawne","Opłaty sądowe",{"v":78,"d":"78.00 zł"},{"v":84,"d":"84.00 zł"},{"$f":"Tabela_Wydatki[[#This Row],[Przewidywane]]-Tabela_Wydatki[[#This Row],[Rzeczywiste]]","v":{"v":-6,"d":"-6.00 zł"}}]
[null,"Prawne","Inne",{"v":93,"d":"93.00 zł"},{"v":71,"d":"71.00 zł"},{"$f":"Tabela_Wydatki[[#This Row],[Przewidywane]]-Tabela_Wydatki[[#This Row],[Rzeczywiste]]","v":{"v":22,"d":"22.00 zł"}}]
[null,"Suma",{"$nulls":3},{"$f":"SUBTOTAL(109,Tabela_Wydatki[Różnica])","v":{"v":-117,"d":"-117.00 zł"}}]